fUST/lending_fUST_20260114
["ID","MTS","AMOUNT","RATE_DAILY","PERIOD"]
[401911550,1768401049067,-2500.0,0.00015464,2]
[401911551,1768401049076,-2500.0,0.00015464,2]
[401911552,1768401049086,-2500.0,0.00015464,2]
[401911553,1768401049095,-1000.0,0.00015683,2]
[401911554,1768401049104,-100000.0,0.0001599,2]
[401911555,1768401049114,-215.88592206,0.00016,2]
[401911556,1768401049123,-3000.0,0.00016012,2]
[401911557,1768401049134,-3000.0,0.00016012,2]
[401911558,1768401049143,-3000.0,0.00016012,2]
[401911559,1768401049153,-500.0,0.00016438,2]
[401911560,1768401049162,-500.0,0.00016438,2]
[401911561,1768401049173,-500.0,0.00016438,2]
[401911562,1768401049183,-507.1057371,0.00016438,2]
[401911563,1768401049193,-2230.315306,0.00016474,2]
[401911564,1768401049203,-168.3888056,0.00016474,2]
[401911565,1768401049212,-174.61919141,0.00016474,2]
[401911566,1768401049221,-181.08010149,0.00016474,2]
[401911567,1768401049231,-187.78006525,0.00016474,2]
[401911568,1768401049240,-194.72792766,0.00016474,2]
[401911569,1768401049249,-201.93286099,0.00016474,2]
[401911570,1768401049259,-209.40437684,0.00016474,2]
[401911571,1768401049268,-217.15233878,0.00016474,2]
[401911572,1768401049278,-225.18697532,0.00016474,2]
[401911573,1768401049287,-233.51889341,0.00016474,2]
[401911574,1768401049296,-242.15909246,0.00016474,2]
[401911575,1768401049306,-251.11897888,0.00016474,2]
[401911576,1768401049315,-260.4103811,0.00016474,2]
[401911577,1768401049325,-461.67526834,0.00016474,2]
[401911578,1768401049335,-270.0455652,0.00016474,2]
[401911579,1768401049344,-280.03725112,0.00016474,2]
[401911580,1768401049354,-290.39862941,0.00016474,2]
[401911581,1768401049363,-301.1433787,0.00016474,2]
[401911582,1768401049373,-3500.0,0.0001656,2]
[401911583,1768401049382,-3500.0,0.0001656,2]
[401911584,1768401049391,-3500.0,0.0001656,2]
[401911585,1768401049399,-20684.14938713,0.00016762,2]
[401911586,1768401049409,-870.0,0.00016807,2]
[401911587,1768401049418,-151.0,0.00017,2]
[401911588,1768401049427,-95477.61285994,0.00017,2]
[401911589,1768401049437,-15000.0,0.00017,2]
[401911590,1768401049447,-2312.83697232,0.00017022,2]
[401911591,1768401049456,-478.75725327,0.00017022,2]
[401911592,1768401049466,-1692.29139729,0.00017108,2]
[401911593,1768401049476,-4000.0,0.00017108,2]
[401911594,1768401049485,-4000.0,0.00017108,2]
[401911595,1768401049494,-1041.66666667,0.00017195,2]
[401911596,1768401049504,-197.5,0.00017217,2]
[401911597,1768401049513,-1000.0,0.00017252,2]
[401911598,1768401049523,-244.0,0.00017252,2]
[401911599,1768401049532,-649.03114781,0.0001744,2]
[401911600,1768401049541,-713.64866101,0.0001757,2]
[401911601,1768401049551,-496.47127164,0.0001757,2]
[401911602,1768401049560,-2137.48177052,0.000176,2]
[401911603,1768401049570,-4500.0,0.00017656,2]
[401911604,1768401049579,-4500.0,0.00017656,2]
[401911605,1768401049589,-4638.3876656,0.000179,2]
[401911606,1768401049598,-150512.98381193,0.00018,2]
[401911607,1768401049607,-39769.91253842,0.00018,5]
[401911608,1768401049618,-6000.89259863,0.00018,2]
[401911609,1768401049629,-514.84070869,0.00018118,2]
[401911610,1768401049638,-1417.48910491,0.00018204,2]
[401911611,1768401049648,-5000.0,0.00018204,2]
[401911612,1768401049658,-151.0,0.000185,2]
[401911613,1768401049668,-197.5,0.00018606,2]
[401911614,1768401049678,-533.88981491,0.00018666,2]
[401911615,1768401049687,-5500.0,0.00018752,2]
[401911616,1768401049699,-2007.0,0.00018838,2]
[401911617,1768401049709,-2007.0,0.0001884,2]
[401911618,1768401049718,-719.46252085,0.000189,5]
[401911619,1768401049728,-303.10001603,0.000189,2]
[401911620,1768401049738,-2007.0,0.00018935,2]
[401911621,1768401049747,-1000.0,0.00018977,2]
[401911622,1768401049757,-492.0,0.00018977,2]
[401911623,1768401049766,-2007.0,0.00018978,2]
[401911624,1768401049776,-151.0,0.00019,2]
[401911625,1768401049785,-17969.48957745,0.00019,2]
[401911626,1768401049795,-2603.49,0.00019,2]
[401911627,1768401049804,-303.10001603,0.00019089,2]
[401911628,1768401049813,-1267.8381,0.00019178,2]
[401911629,1768401049822,-1267.8381,0.00019178,2]
[401911630,1768401049832,-500.0,0.00019178,2]
[401911631,1768401049841,-153.80209306,0.00019178,2]
[401911632,1768401049851,-1137.41,0.000192,2]
[401911633,1768401049860,-500.99801519,0.00019205,5]
[401911634,1768401049870,-553.64373807,0.00019214,2]
[401911635,1768401049880,-2007.0,0.00019216,2]
[401911636,1768401049889,-303.10001603,0.00019278,2]
[401911637,1768401049898,-6000.0,0.000193,2]
[401911638,1768401049907,-378.0,0.00019303,2]
[401911639,1768401049916,-402.28551192,0.00019395,2]
[401911640,1768401049926,-20684.14938713,0.00019417,2]
[401911641,1768401049935,-724.89193132,0.0001944,2]
[401911642,1768401049944,-2007.0,0.00019447,2]
[401911643,1768401049954,-303.10001603,0.00019467,2]
[401911644,1768401049963,-2007.0,0.00019491,2]
[401911645,1768401049972,-152.82,0.000195,2]
[401911646,1768401049981,-151.61,0.000195,2]
[401911647,1768401049991,-2007.0,0.00019501,2]
[401911648,1768401050000,-2007.0,0.00019581,2]
[401911649,1768401050009,-341.7119,0.00019589,3]
[401911650,1768401050019,-622.6119,0.00019589,3]
[401911651,1768401050028,-2007.0,0.00019611,2]
[401911652,1768401050038,-303.10001603,0.00019656,2]
[401911653,1768401050047,-2007.0,0.00019656,2]
[401911654,1768401050056,-2007.0,0.0001966,2]
[401911655,1768401050065,-2007.0,0.00019707,2]
[401911656,1768401050074,-2007.0,0.00019775,2]
[401911657,1768401050084,-7462.77,0.000198,2]
[401911658,1768401050093,-2007.0,0.00019823,2]
[401911659,1768401050103,-454.65002405,0.00019845,4]
[401911660,1768401050112,-6500.0,0.00019848,2]
[401911661,1768401050122,-2007.0,0.00019856,2]
[401911662,1768401050133,-2007.0,0.00019904,2]
[401911663,1768401050142,-2007.0,0.00019907,2]
[401911664,1768401050151,-197.5,0.00019995,2]
[401911665,1768401050160,-151.55000802,0.0002,2]
[401911666,1768401050171,-151.0,0.0002,2]
[401911667,1768401050180,-668.88471487,0.0002,2]
[401911668,1768401050190,-14703.49659754,0.0002,2]
[401911669,1768401050199,-371.66132516,0.0002,2]
[401911670,1768401050208,-200181.45649297,0.0002,2]
[401911671,1768401050217,-163524.2208646,0.0002,7]
[401911672,1768401050226,-804.32909815,0.0002,2]
[401911673,1768401050236,-77401.68985457,0.0002,2]
[401911674,1768401050245,-23000.0,0.0002,2]
[401911675,1768401050254,-82346.01286359,0.0002,7]
[401911676,1768401050263,-202.7514447,0.0002,2]
[401911677,1768401050272,-504.32904356,0.0002,2]
[401911678,1768401050282,-1671.0,0.0002,10]
[401911679,1768401050291,-871.3,0.0002,20]
[401911680,1768401050301,-2007.0,0.0002002,2]
[401911681,1768401050310,-454.65002405,0.00020034,4]
[401911682,1768401050319,-2007.0,0.00020109,2]
[401911683,1768401050328,-503.71435101,0.0002013,2]
[401911684,1768401050337,-2007.0,0.00020168,2]
[401911685,1768401050346,-2007.0,0.00020175,2]
[401911686,1768401050356,-454.65002405,0.00020223,4]
[401911687,1768401050366,-595.37131296,0.0002031,2]
[401911688,1768401050375,-7000.0,0.00020396,2]
[401911689,1768401050386,-454.65002405,0.00020412,4]
[401911690,1768401050396,-456.66051122,0.00020601,4]
[401911691,1768401050405,-1389.51235473,0.0002061,2]
[401911692,1768401050414,-2007.0,0.00020642,2]
[401911693,1768401050424,-2007.0,0.00020686,2]
[401911694,1768401050433,-2007.0,0.00020691,2]
[401911695,1768401050442,-1137.41,0.000207,2]
[401911696,1768401050451,-617.40005154,0.00020858,2]
[401911697,1768401050460,-1000.0,0.00020874,2]
[401911698,1768401050469,-791.0,0.00020874,2]
[401911699,1768401050478,-256.51440562,0.000209,2]
[401911700,1768401050487,-4638.3876656,0.00020925,2]
[401911701,1768401050496,-4183.87260271,0.00020944,2]
[401911702,1768401050506,-151.0,0.00021,3]
[401911703,1768401050515,-7462.77,0.00021,2]
[401911704,1768401050523,-277.38884084,0.00021,2]
[401911705,1768401050532,-299.999999,0.00021,2]
[401911706,1768401050541,-50000.0,0.00021,2]
[401911707,1768401050551,-15000.0,0.00021,2]
[401911708,1768401050560,-197.5,0.00021383,2]
[401911709,1768401050569,-709.81476764,0.00021406,2]
[401911710,1768401050578,-800.75271483,0.0002144,2]
[401911711,1768401050587,-151.0,0.000215,3]
[401911712,1768401050596,-1040.0176033,0.000215,2]
[401911713,1768401050606,-12864.48059022,0.000215,2]
[401911714,1768401050616,-568.82796279,0.0002196,10]
[401911715,1768401050627,-180.12969338,0.00022102,2]
[401911716,1768401050636,-493.83,0.000222,7]
[401911717,1768401050645,-1033.75044732,0.000225,2]
[401911718,1768401050655,-2000.0,0.0002267,7]
[401911719,1768401050665,-197.5,0.00022772,2]
[401911720,1768401050674,-1000.0,0.00022962,10]
[401911721,1768401050685,-1000.0,0.00022962,10]
[401911722,1768401050695,-151.0,0.00023,8]
[401911723,1768401050706,-151.0,0.00023,7]
[401911724,1768401050715,-876.61349834,0.0002344,2]
[401911725,1768401050725,-2000.0,0.00023536,7]
[401911726,1768401050734,-152.82,0.000238,7]
[401911727,1768401050745,-151.61,0.000238,7]
[401911728,1768401050754,-4638.3876656,0.0002395,2]
[401911729,1768401050765,-7462.77,0.00024,2]
[401911730,1768401050775,-28967.02373672,0.00024,2]
[401911731,1768401050785,-1931.32974169,0.00024,60]
[401911732,1768401050795,-1736.447596,0.00024,2]
[401911733,1768401050807,-465.90719096,0.00024,2]
[401911734,1768401050817,-1041.66666667,0.00024,7]
[401911735,1768401050827,-10000.0,0.00024,2]
[401911736,1768401050837,-511930.29645519,0.00024142,2]
[401911737,1768401050846,-197.5,0.00024161,2]
[401911738,1768401050857,-50340.12423014,0.000242,2]
[401911739,1768401050866,-151.0,0.000244,6]
[401911740,1768401050875,-2000.0,0.00024403,7]
[401911741,1768401050885,-1126.0,0.000245,5]
[401911742,1768401050896,-198.0,0.00024548,13]
[401911743,1768401050906,-1137.41,0.000246,14]
[401911744,1768401050916,-59556.64320171,0.0002465,2]
[401911745,1768401050935,-12729.10108764,0.0002465,2]
[401911746,1768401050952,-976.17749496,0.0002465,2]
[401911747,1768401555904,-1537.49287876,0.00012229,2]
[401911748,1768401555928,-330.58443659,0.00012279,2]
[401911749,1768401555953,-1200.0,0.00012328,2]
[401911750,1768401555977,-288.40339473,0.00012328,2]
[401911751,1768401556003,-500.0,0.00012329,2]
[401911752,1768401556239,-500.0,0.00012329,2]
[401911753,1768401556267,-500.0,0.00012329,2]
[401911754,1768401556294,-500.0,0.00012329,2]
[401911755,1768401556324,-500.0,0.00012329,2]
[401911756,1768401556350,-500.0,0.00012329,2]
[401911757,1768401556375,-343.29589597,0.00012329,2]
[401911758,1768401556401,-500.0,0.00012329,2]
[401911759,1768401556425,-500.0,0.00012329,2]
[401911760,1768401556450,-500.0,0.00012329,2]
[401911761,1768401556473,-500.0,0.00012329,2]
[401911762,1768401556497,-500.0,0.00012329,2]
[401911763,1768401556522,-500.0,0.00012329,2]
[401911764,1768401556545,-500.0,0.00012329,2]
[401911765,1768401556570,-500.0,0.00012329,2]
[401911766,1768401556594,-500.0,0.00012329,2]
[401911767,1768401556618,-500.0,0.00012329,2]
[401911768,1768401556642,-500.0,0.00012329,2]
[401911769,1768401556666,-500.0,0.00012329,2]
[401911770,1768401556690,-500.0,0.00012329,2]
[401911771,1768401556713,-500.0,0.00012329,2]
[401911772,1768401556736,-500.0,0.00012329,2]
[401911773,1768401556764,-500.0,0.00012329,2]
[401911774,1768401556789,-500.0,0.00012329,2]
[401911775,1768401556816,-500.0,0.00012329,2]
[401911776,1768401556840,-500.0,0.00012329,2]
[401911777,1768401556865,-500.0,0.00012329,2]
[401911778,1768401556889,-500.0,0.00012329,2]
[401911779,1768401556914,-500.0,0.00012329,2]
[401911780,1768401556938,-500.0,0.00012329,2]
[401911781,1768401556962,-500.0,0.00012329,2]
[401911782,1768401556986,-500.0,0.00012329,2]
[401911783,1768401557011,-500.0,0.00012329,2]
[401911784,1768401557035,-500.0,0.00012329,2]
[401911785,1768401557059,-500.0,0.00012329,2]
[401911786,1768401557083,-500.0,0.00012329,2]
[401911787,1768401557107,-500.0,0.00012329,2]
[401911788,1768401557132,-500.0,0.00012329,2]
[401911789,1768401557157,-500.0,0.00012329,2]
[401911790,1768401557184,-500.0,0.00012329,2]
[401911791,1768401557210,-500.0,0.00012329,2]
[401911792,1768401557238,-500.0,0.00012329,2]
[401911793,1768401557263,-500.0,0.00012329,2]
[401911794,1768401557288,-500.0,0.00012329,2]
[401911795,1768401557313,-500.0,0.00012329,2]
[401911796,1768401557337,-500.0,0.00012329,2]
[401911797,1768401557362,-500.0,0.00012329,2]
[401911798,1768401557387,-500.0,0.00012329,2]
[401911799,1768401557411,-500.0,0.00012329,2]
[401911800,1768401557435,-500.0,0.00012329,2]
[401911801,1768401557460,-500.0,0.00012329,2]
[401911802,1768401557484,-438.57513896,0.00012329,2]
[401911803,1768401557508,-50000.0,0.00012329,2]
[401911878,1768401767358,-500.0,0.0001233,2]
[401911879,1768401767385,-300.0,0.00012575,2]
[401911880,1768401767410,-300.0,0.00012575,2]
[401911881,1768401767435,-300.0,0.00012575,2]
[401911882,1768401767461,-300.0,0.00012575,2]
[401911883,1768401767486,-300.0,0.00012575,2]
[401911884,1768401767510,-300.0,0.00012575,2]
[401911885,1768401767535,-300.0,0.00012575,2]
[401911886,1768401767558,-300.0,0.00012575,2]
[401911887,1768401767582,-300.0,0.00012575,2]
[401911888,1768401767606,-300.0,0.00012575,2]
[401911889,1768401767631,-300.0,0.00012575,2]
[401911890,1768401767656,-300.0,0.00012575,2]
[401911891,1768401767680,-300.0,0.00012575,2]
[401911892,1768401767705,-300.0,0.00012575,2]
[401911893,1768401767729,-300.0,0.00012575,2]
[401911894,1768401767754,-600.0,0.00012575,2]
[401911895,1768401767778,-598.0,0.00012575,2]
[401911896,1768401767801,-50000.0,0.00012575,2]
[401911933,1768402068057,-323.97274785,0.00013005,2]
[401911934,1768402068083,-11579.127755,0.00013488,2]
[401911935,1768402068108,-500.0,0.00013699,2]
[401911936,1768402068134,-5250.20405707,0.00013699,2]
[401911937,1768402068163,-300.0,0.00013756,2]
[401911938,1768402068192,-300.0,0.00013756,2]
[401911939,1768402068220,-300.0,0.00013756,2]
[401911940,1768402068248,-300.0,0.00013756,2]
[401911941,1768402068280,-300.0,0.00013756,2]
[401911942,1768402068307,-300.0,0.00013756,2]
[401911943,1768402068332,-300.0,0.00013756,2]
[401911944,1768402068357,-300.0,0.00013756,2]
[401911945,1768402068381,-300.0,0.00013756,2]
[401911946,1768402068406,-300.0,0.00013756,2]
[401911947,1768402068431,-300.0,0.00013756,2]
[401911948,1768402068457,-300.0,0.00013756,2]
[401911949,1768402068481,-300.0,0.00013756,2]
[401911950,1768402068509,-300.0,0.00013756,2]
[401911951,1768402068749,-300.0,0.00013756,2]
[401911952,1768402068776,-548.81,0.000142,2]
[401911953,1768402068801,-1000.0,0.00014247,2]
[401911954,1768402068825,-212.32924458,0.00014561,2]
[401911955,1768402068851,-201.88237631,0.00014561,2]
[401911956,1768402068877,-500.0,0.00014561,2]
[401911957,1768402068904,-500.0,0.00014561,2]
[401911958,1768402068931,-500.0,0.00014561,2]
[401911959,1768402068956,-500.0,0.00014561,2]
[401911960,1768402068984,-500.0,0.00014561,2]
[401911961,1768402069009,-500.0,0.00014561,2]
[401911962,1768402069036,-193.8575139,0.00014561,2]
[401911963,1768402069063,-500.0,0.00014561,2]
[401911964,1768402069088,-500.0,0.00014561,2]
[401911965,1768402069112,-21689.81630529,0.00014562,2]
[401911966,1768402072441,-28310.18369471,0.00014562,2]
[401911967,1768402072464,-410.56153761,0.0001458,2]
[401911968,1768402072487,-366.2480884,0.0001458,2]
[401912006,1768402231728,-608.0,0.00013273,2]
[401912008,1768402231738,-500.0,0.00013699,2]
[401912010,1768402231747,-32.38279329,0.00013699,2]
[401912031,1768402237850,-1454.92119538,0.00013699,2]
[401912032,1768402237910,-1243.71930417,0.00013699,2]
[401912033,1768402237921,-3408.24271932,0.00013699,2]
[401912034,1768402237931,-1000.0,0.00014247,2]
[401912035,1768402237942,-1000.0,0.00014267,2]
[401912036,1768402237951,-1500.0,0.00014795,2]
[401912037,1768402237961,-600.0,0.00014851,2]
[401912038,1768402237974,-382.28784247,0.00015005,2]
[401912039,1768402237983,-179.2673007,0.00015068,2]
[401912040,1768402237992,-6139.26601216,0.00015104,4]
[401912041,1768402238001,-880.12579905,0.00015342,2]
[401912042,1768402238012,-2258.255079,0.00015545,2]
[401912043,1768402238021,-10342.0746936,0.00015548,2]
[401912044,1768402238030,-2832.264659,0.00015573,2]
[401912045,1768402238041,-50000.0,0.00015648,2]
[401912046,1768402238050,-300.0,0.00015648,2]
[401912047,1768402238060,-300.0,0.00015648,2]
[401912048,1768402238069,-300.0,0.00015648,2]
[401912049,1768402238079,-300.0,0.00015648,2]
[401912050,1768402238088,-300.0,0.00015648,2]
[401912051,1768402238098,-300.0,0.00015648,2]
[401912052,1768402238107,-300.0,0.00015648,2]
[401912053,1768402238117,-300.0,0.00015648,2]
[401912054,1768402238126,-300.0,0.00015648,2]
[401912055,1768402238135,-300.0,0.00015648,2]
[401912056,1768402238147,-300.0,0.00015648,2]
[401912057,1768402238157,-300.0,0.00015648,2]
[401912058,1768402238167,-300.0,0.00015648,2]
[401912059,1768402238177,-300.0,0.00015648,2]
[401912060,1768402238186,-300.0,0.00015648,2]
[401912061,1768402238195,-720.0,0.00016336,2]
[401912062,1768402238206,-465.98416821,0.00016508,2]
[401912063,1768402238216,-6139.26601216,0.00016509,10]
[401912064,1768402238225,-440.60293708,0.00017005,2]
[401912065,1768402238235,-1041.66666667,0.00017234,2]
[401912066,1768402238244,-574.12855638,0.00017471,2]
[401912067,1768402238254,-168.3888056,0.00017471,2]
[401912068,1768402238263,-174.61919141,0.00017471,2]
[401912069,1768402238272,-181.08010149,0.00017471,2]
[401912070,1768402238281,-187.78006525,0.00017471,2]
[401912071,1768402238291,-194.72792766,0.00017471,2]
[401912072,1768402238300,-201.93286099,0.00017471,2]
[401912073,1768402238310,-209.40437684,0.00017471,2]
[401912074,1768402238319,-217.15233878,0.00017471,2]
[401912075,1768402238328,-225.18697532,0.00017471,2]
[401912076,1768402238337,-233.51889341,0.00017471,2]
[401912077,1768402238346,-242.15909246,0.00017471,2]
[401912078,1768402238355,-251.11897888,0.00017471,2]
[401912079,1768402238364,-260.4103811,0.00017471,2]
[401912080,1768402238374,-270.0455652,0.00017471,2]
[401912081,1768402238384,-280.03725112,0.00017471,2]
[401912082,1768402238395,-290.39862941,0.00017471,2]
[401912083,1768402238405,-301.1433787,0.00017471,2]
[401912084,1768402238415,-250.0,0.00017537,2]
[401912085,1768402238424,-10342.07469356,0.0001786,2]
[401912086,1768402238434,-6139.26601216,0.00017914,15]
[401912087,1768402238443,-864.0,0.0001797,2]
[401912088,1768402238453,-498.91803169,0.00019005,2]
[401912089,1768402238462,-6139.26601216,0.00019319,20]
[401912090,1768402238471,-151.61,0.000194,2]
[401912091,1768402238481,-152.82,0.000194,2]
[401912092,1768402238491,-1000.0,0.00019767,2]
[401912093,1768402238501,-1257.1733503,0.0002,2]
[401912094,1768402238510,-1200.0,0.0002,5]
[401912095,1768402238520,-1577.0,0.0002,2]
[401912096,1768402238529,-211.14784481,0.0002,2]
[401912097,1768402238538,-10342.07469356,0.00020173,2]
[401912098,1768402238548,-732.0,0.0002037,120]
[401912099,1768402238557,-6139.26601216,0.00020724,25]
[401912100,1768402238567,-557.23312631,0.00021005,2]
[401912101,1768402238576,-732.0,0.00021388,120]
[401912102,1768402238586,-3362.0,0.00021502,120]
[401912103,1768402238596,-1000.0,0.00021744,10]
[401912104,1768402238605,-244.0,0.00021744,10]
[401912105,1768402238613,-180.12969338,0.00022102,2]
[401912106,1768402238622,-732.0,0.00022458,120]
[401912107,1768402238631,-10342.07469356,0.00022485,2]
[401912108,1768402238642,-3362.0,0.00022577,120]
[401912109,1768402238651,-615.54822092,0.00023005,2]
[401912110,1768402238661,-2837.34701476,0.00023022,2]
[401912111,1768402238671,-2258.255079,0.00023317,2]
[401912112,1768402238680,-2837.34701476,0.00023468,2]
[401912113,1768402238689,-151.0,0.000235,9]
[401912114,1768402238699,-212.72561131,0.00023517,2]
[401912115,1768402238708,-850.05154278,0.00023517,2]
[401912116,1768402238718,-780.02848552,0.00023517,2]
[401912117,1768402238727,-2716.82829092,0.00023534,42]
[401912118,1768402238736,-732.0,0.00023581,120]
[401912119,1768402238745,-2837.34701476,0.00023638,2]
[401912120,1768402238754,-3362.0,0.00023706,120]
[401912121,1768402238763,-1000.0,0.00023918,10]
[401912122,1768402238773,-492.0,0.00023918,10]
[401912123,1768402238782,-2837.34701476,0.00023951,2]
[401912124,1768402238792,-16738.47164837,0.0002399,2]
[401912125,1768402238805,-83261.52835163,0.0002399,2]
[401912126,1768402238815,-151.0,0.00024,5]
[401912127,1768402238824,-282.0,0.0002405,2]
[401912128,1768402238833,-3116.99382815,0.00024181,2]
[401912129,1768402238843,-151.0,0.00024193,2]
[401912130,1768402238853,-500.0,0.000242,2]
[401912131,1768402238863,-335.0,0.0002432,2]
[401912132,1768402238872,-1008.0,0.00024332,120]
[401912133,1768402238881,-163.0,0.00024332,120]
[401912134,1768402238891,-2837.34701479,0.00024336,2]
[401912135,1768402238901,-245.0,0.00024493,13]
[401912136,1768402238910,-151.0,0.000245,5]
[401912137,1768402238920,-151.0,0.000245,7]
[401912138,1768402238929,-394.0,0.00024568,2]
[401912139,1768402238939,-83594.47203628,0.0002465,2]
[401912140,1768402238949,-514.22907277,0.0002465,2]
[401912141,1768402238959,-380.0,0.00024658,2]
[401912142,1768402238969,-200.0,0.00024658,2]
[401912143,1768402238982,-504.0,0.00024671,120]
[401912144,1768402238992,-163.0,0.00024671,120]
[401912145,1768402239002,-444.45,0.000247,7]
[401912146,1768402239012,-796.18,0.000247,14]
[401912147,1768402239023,-732.0,0.0002476,120]
[401912148,1768402239033,-16836.12060946,0.00024774,2]
[401912149,1768402239043,-10342.07469356,0.00024798,2]
[401912150,1768402239054,-3362.0,0.00024891,120]
[401912151,1768402239063,-191330.9551135,0.00024898,2]
[401912152,1768402239073,-5223.94,0.000249,2]
[401912153,1768402239082,-199628.5344946,0.000249,2]
[401912160,1768402239988,-199462.9108564,0.000249,2]
[401912161,1768402240000,-398.0,0.00024932,7]
[401912162,1768402240010,-2716.82829092,0.00024939,53]
[401912163,1768402240020,-119727.433605,0.0002499,2]
[401912164,1768402240030,-1072.45,0.00025,30]
[401912165,1768402240040,-36426.05288557,0.00025,15]
[401912166,1768402240051,-1086.00529944,0.00025,2]
[401912167,1768402240060,-2675.92587353,0.00025,2]
[401912168,1768402240070,-90000.0,0.00025,2]
[401912169,1768402240081,-10364.0,0.00025,2]
[401912170,1768402240091,-500.0,0.00025,2]
[401912171,1768402240100,-2611.93964778,0.00025,2]
[401912172,1768402240110,-760.01897251,0.00025,2]
[401912173,1768402240120,-160.03118063,0.00025,2]
[401912174,1768402240130,-398.0,0.00025,7]
[401912175,1768402240141,-673.86331554,0.00025005,2]
[401912176,1768402240151,-580.66727248,0.000252,5]
[401912177,1768402240160,-250.0,0.00025205,2]
[401912178,1768402240170,-151.0,0.000254,19]
[401912179,1768402240180,-900.0,0.00025469,3]
[401912180,1768402240191,-1000.0,0.000255,2]
[401912181,1768402240201,-1008.0,0.00025548,120]
[401912182,1768402240211,-163.0,0.00025548,120]
[401912183,1768402240221,-151.0,0.00025576,2]
[401912184,1768402240230,-350.0,0.00025753,2]
[401912185,1768402240240,-398.0,0.0002589,7]
[401912186,1768402240250,-151.0,0.000259,13]
[401912187,1768402240259,-444.45,0.000259,7]
[401912188,1768402240269,-796.18,0.000259,14]
[401912189,1768402240278,-504.0,0.00025904,120]
[401912190,1768402240287,-163.0,0.00025904,120]
[401912191,1768402240297,-6242.88173487,0.0002599,2]
[401912192,1768402240579,-33666.26280023,0.0002599,2]
[401912193,1768402240588,-732.0,0.00025998,120]
[401912194,1768402240598,-6803.24817253,0.00026,10]
[401912195,1768402240608,-530.08019871,0.00026,2]
[401912196,1768402240618,-6335.70882853,0.00026,30]
[401912227,1768402245904,-1241.55492012,0.00026,30]
[401912238,1768402247405,-6669.63973976,0.00026,30]
[401912295,1768402803642,158.36,3e-05,2]
[401912303,1768402997585,155.0,5e-05,2]
[401912438,1768403280154,155.69,4.995e-05,2]
[401912439,1768403280488,155.69,4.995e-05,2]
[401912546,1768403431954,-579.0,0.00011328,2]
[401912548,1768403431963,-999.0,0.00011328,2]
[401912550,1768403431973,-278.31564189,0.00011405,2]
[401912552,1768403431982,-5811.3867414,0.00011481,2]
[401912554,1768403431991,-1200.0,0.00012324,2]
[401912556,1768403432002,-300.0,0.00012325,2]
[401912558,1768403432011,-300.0,0.00012325,2]
[401912560,1768403432020,-300.0,0.00012325,2]
[401912562,1768403432030,-300.0,0.00012325,2]
[401912564,1768403432039,-500.0,0.00012326,2]
[401912566,1768403432048,-500.0,0.00012326,2]
[401912568,1768403432057,-500.0,0.00012326,2]
[401912570,1768403432066,-583.12932824,0.00012326,2]
[401912572,1768403432075,-500.0,0.00012326,2]
[401912575,1768403432084,-500.0,0.00012326,2]
[401912576,1768403432093,-500.0,0.00012326,2]
[401912578,1768403432103,-500.0,0.00012326,2]
[401912580,1768403432113,-500.0,0.00012326,2]
[401912582,1768403432122,-500.0,0.00012326,2]
[401912584,1768403432131,-500.0,0.00012326,2]
[401912586,1768403432140,-500.0,0.00012326,2]
[401912588,1768403432149,-500.0,0.00012326,2]